fUST/lending_fUST_20251202
["ID","MTS","AMOUNT","RATE_DAILY","PERIOD"]
[395336668,1764633039877,-151.0,0.0001863,2]
[395336669,1764633039887,-151.0,0.0001863,2]
[395336670,1764633039897,-151.0,0.0001863,2]
[395336671,1764633039907,-151.0,0.0001863,2]
[395336672,1764633039916,-1060.0,0.0001863,2]
[395336673,1764633039926,-2921.34820233,0.0001863,2]
[395336674,1764633039937,-5000.0,0.0001863,2]
[395336675,1764633039947,-500.0,0.0001863,2]
[395336676,1764633039956,-600.0,0.00018691,2]
[395336677,1764633039966,-151.0,0.00018752,2]
[395336679,1764633039975,-151.0,0.00018752,2]
[395336681,1764633039985,-151.0,0.00018752,2]
[395336682,1764633039994,-5500.0,0.00018752,2]
[395336683,1764633040004,-1204.2097623,0.00018765,2]
[395336684,1764633040013,-522567.27320086,0.0001888,2]
[395336685,1764633040022,-600.0,0.0001888,2]
[395336686,1764633040031,-302.57643837,0.000189,2]
[395336687,1764633040041,-1053.92,0.00018904,2]
[395336688,1764633040051,-302.0,0.00019,2]
[395336689,1764633040061,-1000.0,0.00019,2]
[395336690,1764633040071,-201.0,0.00019,5]
[395336691,1764633040082,-4500.0,0.00019,2]
[395336692,1764633040093,-1041.19986794,0.00019,3]
[395336693,1764633040102,-190.0,0.00019,10]
[395336694,1764633040112,-500.0,0.00019,7]
[395336695,1764633040121,-500.0,0.00019,7]
[395336697,1764633040131,-400.79,0.00019,7]
[395336699,1764633040141,-150.0,0.00019001,2]
[395336701,1764633040150,-151.19674669,0.00019041,2]
[395336703,1764633040159,-600.0,0.00019069,2]
[395336705,1764633040168,-302.57643837,0.00019089,2]
[395336707,1764633040177,-500.0,0.000191,5]
[395336709,1764633040187,-500.0,0.000191,5]
[395336711,1764633040195,-500.0,0.000191,5]
[395336713,1764633040205,-510.11132473,0.000191,5]
[395336715,1764633040214,-500.0,0.000191,5]
[395336717,1764633040223,-500.0,0.000191,5]
[395336719,1764633040233,-500.0,0.000191,5]
[395336721,1764633040242,-500.0,0.000191,5]
[395336723,1764633040251,-500.0,0.000191,5]
[395336724,1764633040261,-500.0,0.000191,5]
[395336725,1764633040270,-508.41057333,0.000191,5]
[395336726,1764633040669,-35714.32,0.000191,3]
[395336727,1764633040689,-353.71323156,0.000191,3]
[395336728,1764633040709,-370.91026638,0.00019138,2]
[395336729,1764633040725,-286.33267534,0.00019146,2]
[395336730,1764633040740,-218.04261181,0.00019152,2]
[395336731,1764633040750,-369.45715511,0.00019161,2]
[395336732,1764633040759,-1053.92,0.00019178,2]
[395336733,1764633040768,-150.0,0.00019178,2]
[395336734,1764633040777,-300.0,0.00019178,2]
[395336735,1764633040787,-450.0,0.00019178,2]
[395336736,1764633040797,-600.0,0.00019178,2]
[395336737,1764633040806,-750.0,0.00019178,2]
[395336738,1764633040815,-823.09561454,0.00019178,2]
[395336739,1764633040825,-151.0,0.00019178,2]
[395336740,1764633040835,-151.0,0.00019178,2]
[395336741,1764633040845,-151.0,0.00019178,2]
[395336742,1764633040855,-151.0,0.00019178,2]
[395336743,1764633040864,-151.0,0.00019178,2]
[395336744,1764633040874,-151.0,0.00019178,2]
[395336745,1764633040883,-151.0,0.00019178,2]
[395336746,1764633040892,-151.0,0.00019178,2]
[395336747,1764633040901,-151.0,0.00019178,2]
[395336748,1764633040910,-151.0,0.00019178,2]
[395336749,1764633040920,-151.0,0.00019178,2]
[395336750,1764633040930,-151.0,0.00019178,2]
[395336751,1764633040939,-151.0,0.00019178,2]
[395336752,1764633040949,-151.0,0.00019178,2]
[395336753,1764633040959,-1160.0,0.00019178,2]
[395336754,1764633040968,-5000.0,0.00019178,2]
[395336755,1764633040977,-5000.0,0.00019178,2]
[395336756,1764633040987,-5000.0,0.00019178,2]
[395336757,1764633040996,-5000.0,0.00019178,2]
[395336758,1764633041005,-5000.0,0.00019178,2]
[395336759,1764633041015,-5000.0,0.00019178,2]
[395336760,1764633041024,-5000.0,0.00019178,2]
[395336761,1764633041033,-5000.0,0.00019178,2]
[395336763,1764633041042,-5000.0,0.00019178,2]
[395336765,1764633041051,-5000.0,0.00019178,2]
[395336767,1764633041060,-5000.0,0.00019178,2]
[395336769,1764633041069,-5000.0,0.00019178,2]
[395336771,1764633041078,-1920.41786142,0.00019178,2]
[395336776,1764633041297,-3079.58213858,0.00019178,2]
[395336777,1764633041308,-5000.0,0.00019178,2]
[395336778,1764633041317,-5000.0,0.00019178,2]
[395336779,1764633041326,-2000.00576355,0.00019178,2]
[395336780,1764633041336,-150.0,0.00019178,2]
[395336781,1764633041345,-5500.0,0.00019178,2]
[395336782,1764633041354,-150.0,0.00019178,2]
[395336783,1764633041363,-500.0,0.00019178,2]
[395336784,1764633041373,-1470.79,0.000192,2]
[395336785,1764633041382,-4733.4,0.000192,2]
[395336786,1764633041391,-3369.4,0.000192,2]
[395336787,1764633041401,-5821.11,0.000192,2]
[395336788,1764633041410,-254.088245,0.000192,2]
[395336789,1764633041419,-254.088245,0.000192,2]
[395336790,1764633041429,-254.088245,0.000192,2]
[395336791,1764633041438,-254.088245,0.000192,2]
[395336792,1764633041448,-151.0,0.00019204,2]
[395336793,1764633041457,-151.0,0.00019204,2]
[395336794,1764633041467,-283.107187,0.00019204,2]
[395336795,1764633041478,-3105.88215102,0.00019205,5]
[395336796,1764633041487,-600.0,0.00019258,2]
[395336797,1764633041497,-302.57643837,0.00019278,2]
[395336798,1764633041507,-151.19674669,0.00019288,2]
[395336799,1764633041517,-1000.0,0.00019288,10]
[395336800,1764633041525,-791.0,0.00019288,10]
[395336801,1764633041534,-2867.59969975,0.000193,2]
[395336802,1764633041544,-300.0,0.00019315,2]
[395336803,1764633041553,-150.0,0.000194,3]
[395336804,1764633041562,-600.0,0.000194,2]
[395336805,1764633041571,-600.0,0.000194,2]
[395336806,1764633041580,-1140.80143609,0.000194,2]
[395336807,1764633041590,-600.99962086,0.000194,2]
[395336808,1764633041599,-601.1156232,0.00019446,2]
[395336809,1764633041611,-1053.92,0.00019452,2]
[395336810,1764633041620,-450.0,0.00019452,2]
[395336811,1764633041629,-302.57643837,0.00019467,2]
[395336812,1764633041638,-1849.11552955,0.00019509,2]
[395336813,1764633041648,-4823.75061011,0.00019509,2]
[395336814,1764633041657,-151.19674669,0.00019562,2]
[395336815,1764633041668,-370.58648676,0.00019575,2]
[395336816,1764633041677,-600.0,0.00019589,2]
[395336817,1764633041687,-800.0,0.00019647,2]
[395336818,1764633041696,-302.57643837,0.00019656,2]
[395336819,1764633041710,-384.63394623,0.00019686,2]
[395336820,1764633041725,-1053.92,0.00019726,2]
[395336821,1764633041735,-1260.0,0.00019726,2]
[395336822,1764633041744,-700.0071299,0.00019726,2]
[395336823,1764633041755,-6000.0,0.00019726,2]
[395336824,1764633041764,-250.0,0.00019726,2]
[395336825,1764633041774,-500.0,0.00019726,2]
[395336826,1764633041785,-1141.234688,0.0001976,5]
[395336827,1764633041794,-1000.0,0.0001978,5]
[395336828,1764633041804,-1000.0,0.000198,5]
[395336829,1764633041822,-1000.0,0.0001982,5]
[395336830,1764633041831,-1000.0,0.0001984,5]
[395336831,1764633041841,-453.86465756,0.00019845,4]
[395336832,1764633041851,-2000.0,0.00019852,7]
[395336833,1764633041860,-1000.0,0.0001986,5]
[395336834,1764633041869,-1000.0,0.0001988,5]
[395336835,1764633041879,-314.68982346,0.00019894,7]
[395336836,1764633041889,-1000.0,0.000199,5]
[395336837,1764633041898,-1000.0,0.0001992,5]
[395336838,1764633041907,-1000.0,0.0001994,5]
[395336839,1764633041917,-1000.0,0.0001996,5]
[395336840,1764633041928,-1000.0,0.0001998,5]
[395336841,1764633041938,-1000.0,0.0002,4]
[395336842,1764633041948,-1000.15,0.0002,4]
[395336843,1764633041960,-967.0,0.0002,2]
[395336844,1764633041977,-1689.0,0.0002,2]
[395336845,1764633041987,-11688.81667209,0.0002,2]
[395336846,1764633041995,-14632.5653612,0.0002,2]
[395336847,1764633042004,-23000.0,0.0002,2]
[395336848,1764633042014,-20473.504462,0.0002,2]
[395336849,1764633042025,-5000.0,0.0002,2]
[395336850,1764633042035,-150.0,0.0002,2]
[395336851,1764633042044,-373.4,0.0002,14]
[395336852,1764633042053,-1053.98512662,0.0002,2]
[395336853,1764633042061,-204.37560548,0.0002,2]
[395336854,1764633042070,-390.0,0.0002,2]
[395336855,1764633042079,-369.86373366,0.0002,2]
[395336856,1764633042088,-305.20409344,0.0002,2]
[395336857,1764633042097,-201.75078326,0.0002,2]
[395336858,1764633042106,-501.97771252,0.0002,2]
[395336859,1764633042115,-17885.68555216,0.0002,2]
[395336860,1764633042124,-2000.0,0.0002,4]
[395336861,1764633042134,-783.0,0.0002,2]
[395336862,1764633042144,-150.0,0.0002,2]
[395336863,1764633042155,-150.0,0.0002,2]
[395336864,1764633042164,-150.0,0.0002,2]
[395336865,1764633042173,-150.0,0.0002,2]
[395336866,1764633042183,-150.0,0.0002,2]
[395336867,1764633042193,-154.41350667,0.0002,2]
[395336868,1764633042203,-632.92261772,0.0002,2]
[395336869,1764633042212,-643.62,0.0002,2]
[395336870,1764633042223,-1000.0,0.0002,2]
[395336871,1764633042235,-1000.0,0.0002,2]
[395336872,1764633042245,-7439.38777462,0.0002,20]
[395336873,1764633042255,-101098.37897273,0.0002,5]
[395336886,1764633043164,-435.13124528,0.00010852,2]
[395336888,1764633043176,-34.5497782,0.00010852,2]
[395336889,1764633043185,-500.0,0.00010959,2]
[395336890,1764633043194,-500.0,0.00010959,2]
[395336892,1764633043203,-500.0,0.00010959,2]
[395336893,1764633043212,-350.22159059,0.00010959,2]
[395336896,1764633043223,-149.77840941,0.00010959,2]
[395336897,1764633043235,-500.0,0.00010959,2]
[395336898,1764633043245,-500.0,0.00010959,2]
[395336899,1764633043255,-500.0,0.00010959,2]
[395336900,1764633043264,-500.0,0.00010959,2]
[395336901,1764633043274,-500.0,0.00010959,2]
[395336902,1764633043283,-500.0,0.00010959,2]
[395336903,1764633043292,-500.0,0.00010959,2]
[395336904,1764633043302,-500.0,0.00010959,2]
[395336905,1764633043315,-500.0,0.00010959,2]
[395336906,1764633043325,-500.0,0.00010959,2]
[395336907,1764633043335,-500.0,0.00010959,2]
[395336908,1764633043346,-546.69041064,0.00010959,2]
[395336909,1764633043355,-500.0,0.00010959,2]
[395336910,1764633043365,-1855.05464175,0.00012603,2]
[395336911,1764633043374,-1855.05464175,0.00012813,2]
[395336912,1764633043383,-1855.05464175,0.00013023,2]
[395336913,1764633043392,-1855.05464175,0.00013233,2]
[395336914,1764633043402,-1855.05464175,0.00013443,2]
[395336915,1764633043414,-1855.05464175,0.00013653,2]
[395336916,1764633043424,-44091.38110418,0.0002,5]
[395336917,1764633043434,-11218.36339032,0.0002,3]
[395336918,1764633043443,-886.0,0.0002,2]
[395336919,1764633043452,-1399.03532004,0.0002,2]
[395336920,1764633043461,-2295.0,0.0002,4]
[395336921,1764633043471,-3334.0,0.0002,2]
[395336922,1764633043481,-1200.0,0.0002,2]
[395336923,1764633043490,-502.77101558,0.0002,7]
[395336924,1764633043500,-186.96,0.0002,5]
[395336925,1764633043510,-240.0,0.0002,2]
[395336926,1764633043519,-601.50123001,0.0002,20]
[395336927,1764633043530,-7698.82117615,0.0002,5]
[395336928,1764633043539,-333.0,0.0002,2]
[395336929,1764633043547,-254.088245,0.0002,2]
[395336930,1764633043557,-254.088245,0.0002,2]
[395336931,1764633043566,-254.088245,0.0002,2]
[395336932,1764633043575,-254.088241,0.0002,2]
[395336933,1764633043585,-151.27926681,0.0002,2]
[395336934,1764633043594,-165.77147895,0.0002,2]
[395336935,1764633043603,-1000.0,0.0002,5]
[395336936,1764633043611,-151.0,0.0002,2]
[395336937,1764633043621,-151.0,0.0002,2]
[395336938,1764633043630,-151.0,0.0002,2]
[395336939,1764633043639,-151.0,0.0002,2]
[395336940,1764633043651,-151.0,0.0002,2]
[395336941,1764633043660,-151.0,0.0002,2]
[395336942,1764633043670,-160.507096,0.0002,2]
[395336943,1764633043681,-151.0,0.0002,2]
[395336944,1764633043691,-278.762317,0.0002,2]
[395336945,1764633043702,-151.0,0.0002,2]
[395336946,1764633043720,-151.0,0.0002,2]
[395336947,1764633043730,-151.0,0.0002,2]
[395336948,1764633043741,-151.0,0.0002,2]
[395336949,1764633043755,-151.0,0.0002,2]
[395336950,1764633043776,-219.546753,0.0002,2]
[395336951,1764633043797,-151.0,0.0002,2]
[395336952,1764633043811,-157.425457,0.0002,2]
[395336953,1764633043822,-151.0,0.0002,2]
[395336954,1764633043831,-248.735712,0.0002,2]
[395336955,1764633043840,-2809.105645,0.0002,2]
[395336956,1764633043850,-2809.105645,0.0002,2]
[395336957,1764633043860,-2809.105645,0.0002,2]
[395336958,1764633043869,-1833.376224,0.0002,2]
[395336959,1764633043878,-402.066275,0.0002,2]
[395336960,1764633043888,-2809.105645,0.0002,2]
[395336961,1764633043897,-1833.376224,0.0002,2]
[395336962,1764633043907,-402.066275,0.0002,2]
[395336963,1764633043916,-1833.376224,0.0002,2]
[395336964,1764633043925,-402.066275,0.0002,2]
[395336965,1764633043934,-1833.376224,0.0002,2]
[395336966,1764633043944,-402.066275,0.0002,2]
[395336967,1764633043952,-151.27311453,0.0002,2]
[395336968,1764633043960,-453.86465756,0.00020034,4]
[395336969,1764633043970,-296.21328697,0.000201,2]
[395336970,1764633043982,-174.44234041,0.000201,2]
[395336971,1764633043993,-213.6028658,0.000201,2]
[395336972,1764633044002,-174.78526169,0.000201,2]
[395336973,1764633044012,-158.03642753,0.000201,2]
[395336974,1764633044021,-340.27330565,0.000201,2]
[395336975,1764633044030,-213.06605452,0.0002013,2]
[395336976,1764633044039,-1500.0,0.00020187,2]
[395336977,1764633044048,-1470.79,0.000202,2]
[395336978,1764633044057,-4733.4,0.000202,2]
[395336979,1764633044066,-3369.4,0.000202,2]
[395336980,1764633044074,-5821.11,0.000202,2]
[395336981,1764633044084,-340.27330565,0.00020216,5]
[395336982,1764633044094,-7041.0,0.0002022,59]
[395336983,1764633044103,-453.86465756,0.00020223,4]
[395336984,1764633044112,-398.86540225,0.00020234,2]
[395336985,1764633044122,-6500.0,0.00020274,2]
[395336986,1764633044131,-350.0,0.00020274,2]
[395336987,1764633044141,-500.0,0.00020274,2]
[395336988,1764633044150,-1360.0,0.00020274,2]
[395336989,1764633044160,-340.27330565,0.00020331,9]
[395336990,1764633044169,-453.86465756,0.00020412,4]
[395336991,1764633044179,-340.27330565,0.00020447,13]
[395336992,1764633044188,-150.0,0.00020463,2]
[395336993,1764633044198,-5107.0,0.000205,20]
[395336994,1764633044207,-7084.562696,0.00020548,2]
[395336995,1764633044217,-151.0,0.00020548,2]
[395336996,1764633044226,-151.0,0.00020548,2]
[395336997,1764633044236,-151.0,0.00020548,2]
[395336998,1764633044246,-340.27330565,0.00020563,16]
[395336999,1764633044255,-158.03642753,0.00020579,17]
[395337000,1764633044265,-453.86465756,0.00020601,4]
[395337001,1764633044275,-1382.77305043,0.0002061,2]
[395337002,1764633044285,-174.44234041,0.00020621,17]
[395337003,1764633044297,-340.27330565,0.00020679,20]
[395337004,1764633044307,-340.27330565,0.00020794,24]
[395337005,1764633044316,-1000.83,0.000208,30]
[395337006,1764633044326,-7000.0,0.00020822,2]
[395337007,1764633044336,-450.0,0.00020822,2]
[395337008,1764633044347,-500.0,0.00020822,2]
[395337009,1764633044357,-1460.0,0.00020822,2]
[395337010,1764633044366,-255.16577313,0.000209,2]
[395337011,1764633044377,-151.0,0.000209,4]
[395337012,1764633044387,-151.0,0.000209,4]
[395337013,1764633044397,-340.27330565,0.0002091,28]
[395337014,1764633044407,-50000.0,0.00021,2]
[395337015,1764633044415,-4293.75902334,0.00021,5]
[395337016,1764633044424,-275.9695946,0.00021,2]
[395337017,1764633044433,-41245.8516645,0.00021,30]
[395337018,1764633044444,-1112.57983221,0.00021,10]
[395337019,1764633044453,-1438.0332516,0.00021,30]
[395337020,1764633044462,-1551.37113851,0.00021,10]
[395337021,1764633044471,-8000.0,0.00021,3]
[395337022,1764633044480,-3000.0,0.00021,2]
[395337023,1764633044489,-151.0,0.00021,2]
[395337024,1764633044497,-151.0,0.00021,2]
[395337025,1764633044506,-151.0,0.00021,2]
[395337026,1764633044515,-151.0,0.00021,2]
[395337027,1764633044524,-151.0,0.00021,2]
[395337028,1764633044533,-151.0,0.00021,2]
[395337029,1764633044542,-151.0,0.00021,2]
[395337030,1764633044551,-353.71323156,0.00021,30]
[395337031,1764633044561,-353.71323156,0.00021,3]
[395337032,1764633044570,-3000.0,0.0002101,2]
[395337033,1764633044579,-3000.0,0.0002102,2]
[395337034,1764633044589,-340.27330565,0.00021026,31]
[395337035,1764633044598,-3000.0,0.0002103,2]
[395337036,1764633044607,-3000.0,0.0002104,2]
[395337037,1764633044616,-3000.0,0.0002105,2]
[395337038,1764633044626,-158.03642753,0.00021059,32]
[395337039,1764633044636,-3000.0,0.0002106,2]
[395337040,1764633044646,-3000.0,0.0002107,2]
[395337041,1764633044655,-3000.0,0.0002108,2]
[395337042,1764633044665,-3000.0,0.0002109,2]
[395337043,1764633044675,-3000.0,0.000211,2]
[395337044,1764633044685,-3000.0,0.0002111,2]
[395337045,1764633044695,-3000.0,0.0002112,2]
[395337046,1764633044709,-3000.0,0.0002113,2]
[395337047,1764633044718,-3000.0,0.0002114,2]
[395337048,1764633044728,-340.27330565,0.00021141,35]
[395337049,1764633044737,-174.44234041,0.00021142,32]
[395337050,1764633044748,-3000.0,0.0002115,2]
[395337051,1764633044757,-3000.0,0.0002116,2]
[395337052,1764633044767,-3000.0,0.0002117,2]
[395337053,1764633044776,-3000.0,0.0002118,2]
[395337054,1764633044788,-3000.0,0.0002119,2]
[395337055,1764633044797,-1470.79,0.000212,2]
[395337056,1764633044807,-4733.4,0.000212,2]
[395337057,1764633044816,-3369.4,0.000212,2]
[395337058,1764633044825,-5821.11,0.000212,2]
[395337059,1764633044835,-3000.0,0.000212,2]
[395337060,1764633044844,-3000.0,0.0002121,2]
[395337061,1764633044853,-1000.0,0.00021216,10]
[395337062,1764633044861,-1000.0,0.00021216,10]
[395337063,1764633044871,-3000.0,0.0002122,2]
[395337064,1764633044880,-3000.0,0.0002123,2]
[395337065,1764633044889,-3000.0,0.0002124,2]
[395337066,1764633044898,-3000.0,0.0002125,2]
[395337067,1764633044908,-340.27330565,0.00021257,39]
[395337068,1764633044917,-3000.0,0.0002126,2]
[395337069,1764633044926,-3000.0,0.0002127,2]
[395337070,1764633044935,-3000.0,0.0002128,2]
[395337071,1764633044945,-3000.0,0.0002129,2]
[395337072,1764633044954,-3000.0,0.000213,2]
[395337073,1764633044963,-5096.4771,0.0002131,2]
[395337074,1764633044972,-7400.13613808,0.0002137,2]
[395337075,1764633044981,-550.0,0.0002137,2]
[395337076,1764633044991,-500.0,0.0002137,2]
[395337077,1764633045000,-1560.0,0.0002137,2]
[395337078,1764633045009,-340.27330565,0.00021373,42]
[395337079,1764633045019,-340.27330565,0.00021488,46]
[395337080,1764633045028,-1034.84459848,0.000215,2]
[395337081,1764633045037,-3590.45746611,0.000215,2]
[395337082,1764633045358,-153.99999999,0.00010959,2]
[395337094,1764633722437,250.0,0.0002,30]
[395337095,1764633817526,214.25148764,9.229e-05,2]
[395337096,1764633826249,214.25148764,9.229e-05,2]
[395337097,1764633834862,214.25148764,9.229e-05,2]
[395337119,1764634034134,-161.10759898,9.37e-05,2]
[395337120,1764634034157,-1.42417011,9.465e-05,2]
[395337121,1764634038147,-161.10759898,9.276e-05,2]
[395337122,1764634038168,-112.54688427,9.465e-05,2]
[395337123,1764634123308,202.0,9.9e-05,3]
[395337124,1764634152097,-158.82817789,9.536e-05,2]
[395337125,1764634152118,-207.88269233,9.607e-05,2]
[395337126,1764634175354,10000.0,0.0002,30]
[395337184,1764634238369,-300.0,0.00010204,2]
[395337185,1764634238379,-765.128561,0.00010204,2]
[395337186,1764634238391,-434.871439,0.00010204,2]
[395337187,1764634238400,-300.0,0.00010205,2]
[395337188,1764634238410,-300.0,0.00010205,2]
[395337189,1764634238420,-300.0,0.00010205,2]
[395337190,1764634238430,-300.0,0.00010205,2]
[395337191,1764634238439,-300.0,0.00010205,2]
[395337192,1764634238448,-300.0,0.00010205,2]
[395337193,1764634238460,-300.0,0.00010205,2]
[395337194,1764634238470,-300.0,0.00010205,2]
[395337195,1764634238479,-300.0,0.00010205,2]
[395337196,1764634238490,-300.0,0.00010205,2]
[395337197,1764634238500,-300.0,0.00010205,2]
[395337198,1764634238509,-300.0,0.00010205,2]
[395337199,1764634238519,-226.40517684,0.00010205,2]
[395337200,1764634238530,-73.59482316,0.00010205,2]
[395337201,1764634238539,-300.0,0.00010205,2]
[395337202,1764634238549,-300.0,0.00010205,2]
[395337203,1764634238558,-500.0,0.00010631,2]
[395337204,1764634238567,-336.25976537,0.00010631,2]
[395337205,1764634238577,-500.0,0.00010631,2]
[395337206,1764634238587,-500.0,0.00010631,2]
[395337207,1764634238596,-42.35685047,0.00010631,2]
[395337208,1764634238609,-563.30185463,0.00010631,2]
[395337209,1764634238621,-506.33773567,0.00010631,2]
[395337210,1764634238630,-500.0,0.00010631,2]
[395337211,1764634238639,-48.84596255,0.00010631,2]
[395337212,1764634238651,-123.91147557,0.00010631,2]
[395337213,1764634238660,-294.58623301,0.00010631,2]
[395337214,1764634238675,-205.41376699,0.00010631,2]
[395337215,1764634238685,-282.63017455,0.00010631,2]
[395337216,1764634240432,-217.36982545,0.00010631,2]
[395337217,1764634240440,-500.0,0.00010631,2]
[395337218,1764634240450,-500.0,0.00010631,2]
[395337219,1764634240459,-500.0,0.00010631,2]
[395337220,1764634240468,-500.0,0.00010631,2]
[395337221,1764634240477,-500.0,0.00010631,2]
[395337222,1764634240486,-500.0,0.00010631,2]
[395337223,1764634240494,-500.0,0.00010631,2]
[395337224,1764634240503,-500.0,0.00010631,2]
[395337225,1764634240512,-500.0,0.00010631,2]
[395337226,1764634240521,-199.99999998,0.00010631,2]
[395337227,1764634240530,-193.24800268,0.00010631,2]
[395337235,1764634245795,-306.75199732,0.00010631,2]
[395337236,1764634245807,-500.0,0.00010631,2]
[395337237,1764634245817,-500.0,0.00010631,2]
[395337238,1764634245827,-500.0,0.00010631,2]
[395337239,1764634245837,-500.0,0.00010631,2]
[395337240,1764634245847,-500.0,0.00010631,2]
[395337242,1764634245856,-500.0,0.00010631,2]
[395337244,1764634245866,-100.92800268,0.00010631,2]
[395337268,1764634246498,-358.49902386,0.00010631,2]
[395337322,1764634682278,250.0,0.0002,30]
[395337323,1764634805078,-5206.82794688,0.00036118,60]
[395337324,1764634805105,-6020.8,0.00036118,60]
[395337325,1764634805131,-2359.51,0.00036118,60]
[395337326,1764634805155,-711.99,0.00036118,60]
[395337327,1764634805186,-500.0,0.00036118,60]
[395337328,1764634805213,-2341.96,0.00036118,60]
[395337329,1764634805239,-500.0,0.00036118,60]
[395337330,1764634805266,-6020.8,0.00036118,60]
[395337331,1764634805298,-711.99,0.00036118,60]
[395337332,1764634805322,-500.0,0.00036118,60]
[395337333,1764634805348,-2359.51,0.00036118,60]
[395337334,1764634805373,-2341.96,0.00036118,60]
[395337335,1764634805399,-500.0,0.00036118,60]
[395337336,1764634805424,-6020.8,0.00036118,60]
[395337337,1764634805448,-2359.51,0.00036118,60]
[395337338,1764634805470,-502.28975666,0.00036118,60]
[395337339,1764634805495,-6020.8,0.00036118,60]
[395337340,1764634805517,-711.99,0.00036118,60]
[395337341,1764634805540,-2341.96,0.00036118,60]
[395337342,1764634805564,-2359.51,0.00036118,60]
[395337343,1764634805588,-500.0,0.00036118,60]
[395337344,1764634805616,-6020.8,0.00036118,60]
[395337345,1764634805641,-711.99,0.00036118,60]
[395337346,1764634805665,-2341.96,0.00036118,60]
[395337347,1764634805689,-2359.51,0.00036118,60]
[395337348,1764634805712,-208.0628529,0.00036118,60]
[395337349,1764634805738,-6020.8,0.00036118,60]
[395337350,1764634805762,-711.99,0.00036118,60]
[395337351,1764634805786,-2341.96,0.00036118,60]
[395337352,1764634805811,-2359.51,0.00036118,60]
[395337353,1764634805836,-6020.8,0.00036118,60]
[395337354,1764634805861,-500.0,0.00036118,60]
[395337355,1764634805885,-711.99,0.00036118,60]
[395337356,1764634805913,-2341.96,0.00036118,60]
[395337357,1764634805937,-2359.51,0.00036118,60]
[395337358,1764634805968,-6020.8,0.00036118,60]
[395337359,1764634806249,-711.99,0.00036118,60]
[395337360,1764634806274,-2341.96,0.00036118,60]
[395337361,1764634806302,-500.0,0.00036118,60]
[395337362,1764634806329,-2359.51,0.00036118,60]
[395337363,1764634806353,-712.09811018,0.00036118,60]
[395337364,1764634806378,-2341.96,0.00036118,60]
[395337365,1764634806402,-500.0,0.00036118,60]
[395337366,1764634806427,-2359.51,0.00036118,60]
[395337367,1764634806456,-2341.96,0.00036118,60]
[395337368,1764634806482,-6020.8,0.00036118,60]
[395337369,1764634806506,-500.0,0.00036118,60]
[395337370,1764634806529,-2359.51,0.00036118,60]
[395337371,1764634806554,-500.0,0.00036118,60]
[395337372,1764634806578,-2341.96,0.00036118,60]
[395337373,1764634806601,-500.0,0.00036118,60]
[395337374,1764634806627,-6020.8,0.00036118,60]
[395337375,1764634806651,-2359.51,0.00036118,60]
[395337376,1764634806675,-2341.96,0.00036118,60]
[395337377,1764634806700,-6020.8,0.00036118,60]
[395337378,1764634806723,-500.0,0.00036118,60]
[395337379,1764634806747,-2359.56687157,0.00036118,60]
[395337380,1764634806771,-2341.96,0.00036118,60]
[395337381,1764634806796,-500.0,0.00036118,60]
[395337382,1764634806823,-6020.85034232,0.00036118,60]